[Event "Early-Titled-Tuesday-Blitz-July-09-2024"]
[Site "Chess.com"]
[Date "2024.07.09"]
[Round "4"]
[White "orackbbama"]
[Black "Rile-Man"]
[Result "0-1"]
[WhiteElo "2300"]
[BlackElo "2650"]
[TimeControl "180+1"]
[EndTime "8:40:03 PDT"]
[Termination "Rile-Man won on time"]

1. d4 {[%clk 0:03:00.9]} 1... Nf6 {[%clk 0:02:59.2]} 2. c4 {[%clk 0:03:01.4]}
2... e6 {[%clk 0:02:55.8]} 3. Nc3 {[%clk 0:03:01.1]} 3... Bb4 {[%clk 0:02:55]}
4. f3 {[%clk 0:03:01.6]} 4... d5 {[%clk 0:02:53.9]} 5. a3 {[%clk 0:03:00.2]}
5... Bxc3+ {[%clk 0:02:53.4]} 6. bxc3 {[%clk 0:03:00.7]} 6... O-O {[%clk
0:02:52.6]} 7. cxd5 {[%clk 0:03:00.5]} 7... Nxd5 {[%clk 0:02:53.4]} 8. e4 {[%clk
0:02:43.2]} 8... Ne7 {[%clk 0:02:52.8]} 9. Bd3 {[%clk 0:02:33.9]} 9... c5 {[%clk
0:02:47.5]} 10. Ne2 {[%clk 0:02:33.6]} 10... b6 {[%clk 0:02:45.2]} 11. O-O
{[%clk 0:02:32.7]} 11... Ba6 {[%clk 0:02:42.7]} 12. Bxa6 {[%clk 0:02:23.2]}
12... Nxa6 {[%clk 0:02:43.6]} 13. Be3 {[%clk 0:02:10.2]} 13... Qc7 {[%clk
0:02:41.5]} 14. Qa4 {[%clk 0:01:54.9]} 14... Nb8 {[%clk 0:02:40]} 15. Rac1
{[%clk 0:01:53.6]} 15... Rc8 {[%clk 0:02:35.1]} 16. Rfd1 {[%clk 0:01:34.9]}
16... Qb7 {[%clk 0:02:34.6]} 17. dxc5 {[%clk 0:01:23.4]} 17... bxc5 {[%clk
0:02:35.5]} 18. Rb1 {[%clk 0:01:22.2]} 18... Qa6 {[%clk 0:02:34.3]} 19. Qxa6
{[%clk 0:01:20.9]} 19... Nxa6 {[%clk 0:02:35.2]} 20. Rd7 {[%clk 0:01:15.4]}
20... Nc6 {[%clk 0:02:32.8]} 21. Rbb7 {[%clk 0:01:01.7]} 21... Ne5 {[%clk
0:02:21.5]} 22. Re7 {[%clk 0:01:00.5]} 22... Rcb8 {[%clk 0:01:46.5]} 23. Rxa7
{[%clk 0:00:44.9]} 23... Nc6 {[%clk 0:01:43.3]} 24. Rxa8 {[%clk 0:00:43.4]}
24... Rxa8 {[%clk 0:01:44.2]} 25. Rb7 {[%clk 0:00:42.5]} 25... Ne5 {[%clk
0:01:38]} 26. Kf2 {[%clk 0:00:20.4]} 26... Nc4 {[%clk 0:01:37.2]} 27. Bc1 {[%clk
0:00:20.1]} 27... e5 {[%clk 0:01:33.8]} 28. Ng3 {[%clk 0:00:17.5]} 28... g6
{[%clk 0:01:33.2]} 29. Nf1 {[%clk 0:00:17.6]} 29... Na5 {[%clk 0:01:26.6]} 30.
Rb5 {[%clk 0:00:15.6]} 30... Nc4 {[%clk 0:01:04]} 31. Ne3 {[%clk 0:00:14.7]}
31... Nxe3 {[%clk 0:01:04.3]} 32. Bxe3 {[%clk 0:00:14.5]} 32... Kf8 {[%clk
0:01:05.2]} 33. a4 {[%clk 0:00:12.2]} 33... Rc8 {[%clk 0:01:04]} 34. Rb6 {[%clk
0:00:11.1]} 34... Nb8 {[%clk 0:01:02]} 35. a5 {[%clk 0:00:09.5]} 35... Nd7
{[%clk 0:01:01.6]} 36. Rb7 {[%clk 0:00:08.6]} 36... Nb8 {[%clk 0:00:55]} 37. Rb5
{[%clk 0:00:07.2]} 37... Na6 {[%clk 0:00:51.7]} 38. Rb6 {[%clk 0:00:07.2]} 38...
Ra8 {[%clk 0:00:50.7]} 39. Rc6 {[%clk 0:00:05.5]} 39... Ke7 {[%clk 0:00:50.2]}
40. Bxc5+ {[%clk 0:00:04.7]} 40... Kd7 {[%clk 0:00:50.5]} 41. Rd6+ {[%clk
0:00:04.5]} 41... Kc7 {[%clk 0:00:51]} 42. Rd5 {[%clk 0:00:03.5]} 42... Kc6
{[%clk 0:00:50.2]} 43. Bb4 {[%clk 0:00:02.5]} 43... f6 {[%clk 0:00:49.7]} 44.
Rd6+ {[%clk 0:00:02.4]} 44... Kb5 {[%clk 0:00:50.2]} 45. Rxf6 {[%clk 0:00:02.5]}
45... Nb8 {[%clk 0:00:49.8]} 46. Rf7 {[%clk 0:00:01.5]} 46... Nc6 {[%clk
0:00:50.7]} 47. Rxh7 {[%clk 0:00:01.6]} 47... Rd8 {[%clk 0:00:50.3]} 48. Ke2
{[%clk 0:00:01]} 48... Ra8 {[%clk 0:00:41.9]} 49. Rg7 {[%clk 0:00:01.6]} 49...
Ka4 {[%clk 0:00:41.9]} 50. Rxg6 {[%clk 0:00:01.3]} 50... Na7 {[%clk 0:00:42.8]}
51. h4 {[%clk 0:00:01.2]} 51... Nb5 {[%clk 0:00:43.7]} 52. g3 {[%clk 0:00:01.2]}
52... Na3 {[%clk 0:00:43.8]} 53. Bxa3 {[%clk 0:00:01.2]} 53... Kxa3 {[%clk
0:00:43.7]} 54. h5 {[%clk 0:00:01.2]} 54... Rxa5 {[%clk 0:00:44.3]} 55. h6
{[%clk 0:00:01.7]} 55... Kb3 {[%clk 0:00:45.2]} 56. h7 {[%clk 0:00:02]} 56...
Ra3 {[%clk 0:00:46.1]} 57. h8=Q {[%clk 0:00:02]} 57... Ra2+ {[%clk 0:00:46.7]}
58. Ke3 {[%clk 0:00:01.9]} 58... Kc4 {[%clk 0:00:47.6]} 59. Qc8+ {[%clk
0:00:01.9]} 59... Kb3 {[%clk 0:00:47.9]} 60. Rb6+ {[%clk 0:00:01.3]} 60... Kc2
{[%clk 0:00:48.8]} 0-1

[Event "Early-Titled-Tuesday-Blitz-July-09-2024"]
[Site "Chess.com"]
[Date "2024.07.09"]
[Round "4"]
[White "ural58"]
[Black "GeorgiosSouleidis"]
[Result "0-1"]
[WhiteElo "2414"]
[BlackElo "2660"]
[TimeControl "180+1"]
[EndTime "8:40:03 PDT"]
[Termination "GeorgiosSouleidis won on time"]

1. e4 {[%clk 0:02:54.5]} 1... c5 {[%clk 0:03:00.1]} 2. b3 {[%clk 0:02:54.3]}
2... e6 {[%clk 0:02:55.6]} 3. Nf3 {[%clk 0:02:49.4]} 3... b6 {[%clk 0:02:55.7]}
4. c4 {[%clk 0:02:43.7]} 4... Bb7 {[%clk 0:02:55.6]} 5. Nc3 {[%clk 0:02:43.8]}
5... Nc6 {[%clk 0:02:45.2]} 6. d4 {[%clk 0:02:39.2]} 6... cxd4 {[%clk
0:02:44.8]} 7. Nxd4 {[%clk 0:02:39.8]} 7... Bb4 {[%clk 0:02:39.1]} 8. Bb2 {[%clk
0:02:36.7]} 8... Nf6 {[%clk 0:02:34.1]} 9. f3 {[%clk 0:01:55.8]} 9... d5 {[%clk
0:02:16.7]} 10. Nxc6 {[%clk 0:01:51.5]} 10... Bxc6 {[%clk 0:02:17.6]} 11. cxd5
{[%clk 0:01:50.9]} 11... exd5 {[%clk 0:02:17.7]} 12. e5 {[%clk 0:01:49.8]} 12...
Qe7 {[%clk 0:01:43.8]} 13. f4 {[%clk 0:01:38.9]} 13... Ne4 {[%clk 0:01:42.6]}
14. Qd3 {[%clk 0:01:21]} 14... O-O {[%clk 0:01:26.2]} 15. a3 {[%clk 0:01:14.6]}
15... Bc5 {[%clk 0:01:13.3]} 16. Nd1 {[%clk 0:00:48.9]} 16... a5 {[%clk
0:00:58.4]} 17. Bd4 {[%clk 0:00:37]} 17... Bxd4 {[%clk 0:00:43.2]} 18. Qxd4
{[%clk 0:00:36.3]} 18... Qh4+ {[%clk 0:00:43.8]} 19. g3 {[%clk 0:00:16.3]} 19...
Nxg3 {[%clk 0:00:43.8]} 20. Qf2 {[%clk 0:00:14.5]} 20... Nf5 {[%clk 0:00:34.2]}
21. Qxh4 {[%clk 0:00:13.6]} 21... Nxh4 {[%clk 0:00:35.1]} 22. Kf2 {[%clk
0:00:07.5]} 22... f6 {[%clk 0:00:33]} 23. e6 {[%clk 0:00:06.3]} 23... Rae8
{[%clk 0:00:32.5]} 24. Bh3 {[%clk 0:00:06.4]} 24... f5 {[%clk 0:00:31.3]} 25.
Ne3 {[%clk 0:00:04.6]} 25... d4 {[%clk 0:00:29.1]} 26. Nc4 {[%clk 0:00:02.5]}
26... Bxh1 {[%clk 0:00:29.2]} 27. Rxh1 {[%clk 0:00:03]} 27... Rxe6 {[%clk
0:00:29.5]} 28. Re1 {[%clk 0:00:01.8]} 28... Rxe1 {[%clk 0:00:27.6]} 29. Kxe1
{[%clk 0:00:02.7]} 29... Rf6 {[%clk 0:00:25.9]} 30. Kf2 {[%clk 0:00:02.5]} 30...
Kf8 {[%clk 0:00:24.3]} 31. Bf1 {[%clk 0:00:02.9]} 31... Ng6 {[%clk 0:00:23.4]}
32. Kf3 {[%clk 0:00:02.2]} 32... Ne7 {[%clk 0:00:23.4]} 33. Bd3 {[%clk
0:00:02.2]} 33... g6 {[%clk 0:00:23.3]} 34. Ne5 {[%clk 0:00:02.2]} 34... Ke8
{[%clk 0:00:20.8]} 35. h4 {[%clk 0:00:02.7]} 35... Kd8 {[%clk 0:00:20.6]} 36. b4
{[%clk 0:00:01.6]} 36... axb4 {[%clk 0:00:20.1]} 37. axb4 {[%clk 0:00:02.5]}
37... Kc7 {[%clk 0:00:20.7]} 38. Bc4 {[%clk 0:00:02.2]} 38... Nc6 {[%clk
0:00:20.4]} 39. Nd3 {[%clk 0:00:02.8]} 39... Rf8 {[%clk 0:00:18.8]} 40. b5
{[%clk 0:00:03.2]} 40... Na5 {[%clk 0:00:19.4]} 41. Bd5 {[%clk 0:00:03.1]} 41...
Rd8 {[%clk 0:00:18.6]} 42. Be6 {[%clk 0:00:03]} 42... Kd6 {[%clk 0:00:18.4]} 43.
Ba2 {[%clk 0:00:02.7]} 43... Rc8 {[%clk 0:00:18.4]} 44. Ke2 {[%clk 0:00:02.2]}
44... Rc2+ {[%clk 0:00:18.2]} 0-1

[Event "Early-Titled-Tuesday-Blitz-July-09-2024"]
[Site "Chess.com"]
[Date "2024.07.09"]
[Round "4"]
[White "ccccvhhhj"]
[Black "KnightmareJoker"]
[Result "1-0"]
[WhiteElo "2522"]
[BlackElo "2320"]
[TimeControl "180+1"]
[EndTime "8:40:03 PDT"]
[Termination "ccccvhhhj won by checkmate"]

1. e4 {[%clk 0:03:00.9]} 1... e5 {[%clk 0:02:59.8]} 2. Nf3 {[%clk 0:03:01.3]}
2... Nf6 {[%clk 0:03:00.4]} 3. Nxe5 {[%clk 0:03:01.2]} 3... d6 {[%clk
0:03:00.1]} 4. Nf3 {[%clk 0:03:01.6]} 4... Nxe4 {[%clk 0:02:59.9]} 5. Nc3 {[%clk
0:03:02.2]} 5... Nxc3 {[%clk 0:02:57.1]} 6. dxc3 {[%clk 0:03:02.8]} 6... Be7
{[%clk 0:02:56.7]} 7. Be3 {[%clk 0:03:03.4]} 7... O-O {[%clk 0:02:56.4]} 8. Qd2
{[%clk 0:03:04]} 8... a5 {[%clk 0:02:53]} 9. h4 {[%clk 0:03:03]} 9... a4 {[%clk
0:02:45.9]} 10. a3 {[%clk 0:03:02.9]} 10... Bf6 {[%clk 0:02:37.3]} 11. Bd3
{[%clk 0:03:02.3]} 11... Nc6 {[%clk 0:01:53.5]} 12. Ng5 {[%clk 0:03:00.4]} 12...
h6 {[%clk 0:01:45.4]} 13. Nh7 {[%clk 0:02:59.1]} 13... Re8 {[%clk 0:01:42.2]}
14. Nxf6+ {[%clk 0:02:59.1]} 14... Qxf6 {[%clk 0:01:42]} 15. O-O-O {[%clk
0:02:59.4]} 15... Ne5 {[%clk 0:01:39]} 16. Be2 {[%clk 0:02:48.3]} 16... Be6
{[%clk 0:01:30.1]} 17. Kb1 {[%clk 0:02:47.4]} 17... Bc4 {[%clk 0:00:55.3]} 18.
Bd4 {[%clk 0:02:37.7]} 18... Bxe2 {[%clk 0:00:51.2]} 19. Qxe2 {[%clk 0:02:38.6]}
19... c5 {[%clk 0:00:49.6]} 20. Be3 {[%clk 0:02:36.3]} 20... b5 {[%clk
0:00:46.8]} 21. g4 {[%clk 0:02:32.6]} 21... Qg6 {[%clk 0:00:26.3]} 22. h5 {[%clk
0:02:23.8]} 22... Qxg4 {[%clk 0:00:24.3]} 23. Qf1 {[%clk 0:02:18.2]} 23... Nc4
{[%clk 0:00:20.6]} 24. Rg1 {[%clk 0:02:15.8]} 24... Nxe3 {[%clk 0:00:18]} 25.
fxe3 {[%clk 0:02:16.7]} 25... Qxh5 {[%clk 0:00:17.5]} 26. Rxd6 {[%clk
0:02:13.9]} 26... Rxe3 {[%clk 0:00:16.7]} 27. Qg2 {[%clk 0:02:14]} 27... g6
{[%clk 0:00:15.7]} 28. Rd5 {[%clk 0:02:13.5]} 28... Qe2 {[%clk 0:00:13.7]} 29.
Qh1 {[%clk 0:02:03.9]} 29... Rae8 {[%clk 0:00:13.2]} 30. Qxh6 {[%clk 0:01:58.5]}
30... R3e6 {[%clk 0:00:12.7]} 31. Rh1 {[%clk 0:01:45.6]} 31... f5 {[%clk
0:00:03.4]} 32. Rd7 {[%clk 0:01:39.2]} 32... Qe1+ {[%clk 0:00:02.6]} 33. Rxe1
{[%clk 0:01:38.3]} 33... Rxe1+ {[%clk 0:00:03.5]} 34. Ka2 {[%clk 0:01:39.2]}
34... R8e7 {[%clk 0:00:04.1]} 35. Qxg6+ {[%clk 0:01:38.8]} 35... Kf8 {[%clk
0:00:04.8]} 36. Qf6+ {[%clk 0:01:38.5]} 36... Ke8 {[%clk 0:00:05.6]} 37. Rxe7+
{[%clk 0:01:38.9]} 37... Rxe7 {[%clk 0:00:06.1]} 38. Qxf5 {[%clk 0:01:39.4]}
38... Rc7 {[%clk 0:00:06.8]} 39. Qe5+ {[%clk 0:01:39.6]} 39... Kd8 {[%clk
0:00:07.5]} 40. Qh8+ {[%clk 0:01:39.3]} 40... Kd7 {[%clk 0:00:07.2]} 41. Qg7+
{[%clk 0:01:37.4]} 41... Kc6 {[%clk 0:00:07.4]} 42. Qf6+ {[%clk 0:01:37.4]}
42... Kb7 {[%clk 0:00:07.7]} 43. Qf3+ {[%clk 0:01:38.1]} 43... Rc6 {[%clk
0:00:08.1]} 44. Qd5 {[%clk 0:01:38.3]} 44... Kb6 {[%clk 0:00:08.5]} 45. Kb1
{[%clk 0:01:37.8]} 45... Rh6 {[%clk 0:00:07.8]} 46. Qd8+ {[%clk 0:01:37.6]}
46... Ka6 {[%clk 0:00:06.4]} 47. Qa8+ {[%clk 0:01:36.4]} 47... Kb6 {[%clk
0:00:06.2]} 48. Qb8+ {[%clk 0:01:36.4]} 48... Ka6 {[%clk 0:00:06.1]} 49. c4
{[%clk 0:01:35.5]} 49... bxc4 {[%clk 0:00:04.1]} 50. Qc8+ {[%clk 0:01:35.3]}
50... Kb6 {[%clk 0:00:04.1]} 51. Qb8+ {[%clk 0:01:34.9]} 51... Ka6 {[%clk
0:00:04.5]} 52. Qe5 {[%clk 0:01:35.6]} 52... Rc6 {[%clk 0:00:04]} 53. Qc3 {[%clk
0:01:34.5]} 53... Kb5 {[%clk 0:00:04.2]} 54. Ka2 {[%clk 0:01:35.4]} 54... Rd6
{[%clk 0:00:04.4]} 55. Qe5 {[%clk 0:01:34.3]} 55... Rb6 {[%clk 0:00:04.5]} 56.
Qe8+ {[%clk 0:01:34.2]} 56... Rc6 {[%clk 0:00:05.1]} 57. c3 {[%clk 0:01:30.6]}
57... Ka5 {[%clk 0:00:02.9]} 58. Qb8 {[%clk 0:01:29.9]} 58... Rb6 {[%clk
0:00:01.8]} 59. Qa8+ {[%clk 0:01:30.2]} 59... Kb5 {[%clk 0:00:02.4]} 60. Kb1
{[%clk 0:01:25.6]} 60... Rc6 {[%clk 0:00:02.6]} 61. Kc2 {[%clk 0:01:25.5]} 61...
Rb6 {[%clk 0:00:03.2]} 62. Qe8+ {[%clk 0:01:25.1]} 62... Rc6 {[%clk 0:00:03.7]}
63. Kd2 {[%clk 0:01:25.3]} 63... Kb6 {[%clk 0:00:03.8]} 64. Ke3 {[%clk 0:01:25]}
64... Kb5 {[%clk 0:00:04.1]} 65. Ke4 {[%clk 0:01:25]} 65... Ka5 {[%clk
0:00:03.5]} 66. Kd5 {[%clk 0:01:22]} 66... Rb6 {[%clk 0:00:03.6]} 67. Kxc5
{[%clk 0:01:20.3]} 67... Rc6+ {[%clk 0:00:02.1]} 68. Kxc6 {[%clk 0:01:19.1]}
68... Ka6 {[%clk 0:00:02.7]} 69. Qa8# {[%clk 0:01:19.5]} 1-0

[Event "Early-Titled-Tuesday-Blitz-July-09-2024"]
[Site "Chess.com"]
[Date "2024.07.09"]
[Round "4"]
[White "BashirliSaadat"]
[Black "DucksParadise"]
[Result "1/2-1/2"]
[WhiteElo "2402"]
[BlackElo "2613"]
[TimeControl "180+1"]
[EndTime "8:40:05 PDT"]
[Termination "Game drawn by repetition"]

1. d4 {[%clk 0:03:00.9]} 1... Nf6 {[%clk 0:02:59.1]} 2. e3 {[%clk 0:03:00]} 2...
g6 {[%clk 0:02:59.1]} 3. Bd3 {[%clk 0:02:59.1]} 3... Bg7 {[%clk 0:02:59.7]} 4.
f4 {[%clk 0:02:56.8]} 4... O-O {[%clk 0:02:57.7]} 5. Nf3 {[%clk 0:02:50.3]} 5...
d5 {[%clk 0:02:54.5]} 6. O-O {[%clk 0:02:49.8]} 6... c5 {[%clk 0:02:51.5]} 7. c3
{[%clk 0:02:49.2]} 7... Bf5 {[%clk 0:02:45.2]} 8. Ne5 {[%clk 0:02:47.5]} 8...
Nbd7 {[%clk 0:02:40.3]} 9. Qe2 {[%clk 0:02:46.6]} 9... c4 {[%clk 0:02:37.4]} 10.
Bxf5 {[%clk 0:02:45.7]} 10... gxf5 {[%clk 0:02:38.3]} 11. Nd2 {[%clk 0:02:45.9]}
11... Ne4 {[%clk 0:02:36.3]} 12. Nxe4 {[%clk 0:02:43.8]} 12... fxe4 {[%clk
0:02:35.8]} 13. Nxd7 {[%clk 0:02:43.5]} 13... Qxd7 {[%clk 0:02:35.9]} 14. Bd2
{[%clk 0:02:43.3]} 14... f5 {[%clk 0:02:34.2]} 15. b3 {[%clk 0:02:41.5]} 15...
b5 {[%clk 0:02:27.3]} 16. Rab1 {[%clk 0:02:34.7]} 16... Rf6 {[%clk 0:02:07.9]}
17. bxc4 {[%clk 0:02:32.7]} 17... bxc4 {[%clk 0:02:07.7]} 18. Rb4 {[%clk
0:02:32.4]} 18... Rb6 {[%clk 0:02:04.5]} 19. Rfb1 {[%clk 0:02:31.5]} 19... Rxb4
{[%clk 0:02:04.6]} 20. Rxb4 {[%clk 0:02:32.4]} 20... e6 {[%clk 0:02:03.3]} 21.
Qd1 {[%clk 0:02:25]} 21... Bf8 {[%clk 0:02:01]} 22. Rb2 {[%clk 0:02:21.9]} 22...
Bd6 {[%clk 0:01:47.7]} 23. Qb1 {[%clk 0:02:20.9]} 23... Qc7 {[%clk 0:01:34.6]}
24. Rb7 {[%clk 0:02:16.9]} 24... Rb8 {[%clk 0:01:34.3]} 25. Rxb8+ {[%clk
0:02:15.4]} 25... Qxb8 {[%clk 0:01:35.2]} 26. Qxb8+ {[%clk 0:02:14.9]} 26...
Bxb8 {[%clk 0:01:35.4]} 27. Bc1 {[%clk 0:02:14.2]} 27... Bd6 {[%clk 0:01:35.1]}
28. Kf2 {[%clk 0:02:14.3]} 28... Kf7 {[%clk 0:01:35.6]} 29. Ke2 {[%clk
0:02:14.7]} 29... Ke7 {[%clk 0:01:36]} 30. Kd2 {[%clk 0:02:15.1]} 30... Kd7
{[%clk 0:01:36.7]} 31. Kc2 {[%clk 0:02:15.5]} 31... Kc6 {[%clk 0:01:37.4]} 32.
Kb2 {[%clk 0:02:11.5]} 32... Kb5 {[%clk 0:01:37.4]} 33. Bd2 {[%clk 0:02:12]}
33... Ka4 {[%clk 0:01:36.9]} 34. Be1 {[%clk 0:02:12.4]} 34... Ba3+ {[%clk
0:01:36.1]} 35. Kc2 {[%clk 0:02:12.9]} 35... Be7 {[%clk 0:01:35.7]} 36. Kb2
{[%clk 0:02:13.3]} 36... h5 {[%clk 0:01:33.6]} 37. Bf2 {[%clk 0:02:12]} 37...
Bd8 {[%clk 0:01:17.5]} 38. h4 {[%clk 0:02:08]} 38... Be7 {[%clk 0:01:12.9]} 39.
g3 {[%clk 0:02:07.7]} 39... Ba3+ {[%clk 0:01:10.8]} 40. Kc2 {[%clk 0:02:07.3]}
40... Kb5 {[%clk 0:01:09.2]} 41. Be1 {[%clk 0:02:04.5]} 41... a5 {[%clk
0:01:07.5]} 42. Bf2 {[%clk 0:02:04.2]} 42... Ka4 {[%clk 0:01:05.7]} 43. Be1
{[%clk 0:02:02.9]} 43... Be7 {[%clk 0:01:04.9]} 44. Kb2 {[%clk 0:02:02.8]} 44...
Ba3+ {[%clk 0:01:03.2]} 45. Kc2 {[%clk 0:02:02.7]} 45... Bd6 {[%clk 0:01:03.3]}
46. Kb2 {[%clk 0:02:01.7]} 46... Bf8 {[%clk 0:01:03.3]} 47. Bf2 {[%clk
0:02:01.5]} 47... Ba3+ {[%clk 0:01:03.2]} 48. Kc2 {[%clk 0:02:01.5]} 48... Bb4
{[%clk 0:00:51.6]} 49. cxb4 {[%clk 0:01:15.3]} 49... axb4 {[%clk 0:00:52.5]} 50.
Kb2 {[%clk 0:01:15.5]} 50... c3+ {[%clk 0:00:51.7]} 51. Kb1 {[%clk 0:01:15.3]}
51... Ka3 {[%clk 0:00:51.9]} 52. Be1 {[%clk 0:01:05.1]} 52... Ka4 {[%clk
0:00:51.5]} 53. Kc2 {[%clk 0:00:56]} 53... Ka3 {[%clk 0:00:51.3]} 54. Kb1 {[%clk
0:00:28.1]} 54... Ka4 {[%clk 0:00:41.8]} 55. Kc2 {[%clk 0:00:26.6]} 55... Ka3
{[%clk 0:00:26.5]} 56. Kb1 {[%clk 0:00:21.9]} 1/2-1/2

[Event "Early-Titled-Tuesday-Blitz-July-09-2024"]
[Site "Chess.com"]
[Date "2024.07.09"]
[Round "4"]
[White "Boorchess"]
[Black "Chernov_Alexander_A"]
[Result "0-1"]
[WhiteElo "2562"]
[BlackElo "2272"]
[TimeControl "180+1"]
[EndTime "8:40:05 PDT"]
[Termination "Chernov_Alexander_A won on time"]

1. d4 {[%clk 0:03:00.9]} 1... Nf6 {[%clk 0:02:59.2]} 2. c4 {[%clk 0:03:01]} 2...
e6 {[%clk 0:02:59.2]} 3. Nc3 {[%clk 0:03:00.7]} 3... d5 {[%clk 0:02:56.9]} 4.
cxd5 {[%clk 0:02:59.6]} 4... Nxd5 {[%clk 0:02:56.1]} 5. e4 {[%clk 0:02:59.4]}
5... Nxc3 {[%clk 0:02:56.1]} 6. bxc3 {[%clk 0:03:00.3]} 6... c5 {[%clk
0:02:56.4]} 7. Rb1 {[%clk 0:03:00.3]} 7... Qa5 {[%clk 0:02:48]} 8. Bb5+ {[%clk
0:02:52.5]} 8... Bd7 {[%clk 0:02:45.2]} 9. Bxd7+ {[%clk 0:02:49.7]} 9... Nxd7
{[%clk 0:02:45]} 10. Bd2 {[%clk 0:02:46.3]} 10... b6 {[%clk 0:02:39.1]} 11. Nf3
{[%clk 0:02:42.8]} 11... Qa6 {[%clk 0:02:38.3]} 12. Qe2 {[%clk 0:02:39.7]} 12...
Qxe2+ {[%clk 0:02:36.9]} 13. Kxe2 {[%clk 0:02:39.7]} 13... Be7 {[%clk
0:02:29.1]} 14. a4 {[%clk 0:02:34.3]} 14... O-O-O {[%clk 0:02:27.6]} 15. Rhc1
{[%clk 0:02:30.4]} 15... Rhe8 {[%clk 0:02:23.3]} 16. a5 {[%clk 0:02:25.6]} 16...
Kb7 {[%clk 0:02:20]} 17. axb6 {[%clk 0:02:06.5]} 17... axb6 {[%clk 0:02:19.1]}
18. Be3 {[%clk 0:02:04.6]} 18... Ra8 {[%clk 0:02:06.3]} 19. Nd2 {[%clk
0:01:55.3]} 19... Ra2 {[%clk 0:02:02.1]} 20. Kf3 {[%clk 0:01:52.6]} 20... f5
{[%clk 0:01:39.4]} 21. exf5 {[%clk 0:01:43.3]} 21... exf5 {[%clk 0:01:37.7]} 22.
Nc4 {[%clk 0:01:38.2]} 22... Kc6 {[%clk 0:01:34.3]} 23. d5+ {[%clk 0:01:22.9]}
23... Kxd5 {[%clk 0:01:11.3]} 24. Nxb6+ {[%clk 0:01:16.6]} 24... Nxb6 {[%clk
0:01:11.1]} 25. Rxb6 {[%clk 0:01:17.1]} 25... Kc4 {[%clk 0:01:05.6]} 26. Re6
{[%clk 0:01:06.1]} 26... Raa8 {[%clk 0:01:04.1]} 27. Rb1 {[%clk 0:00:33.7]}
27... Bf6 {[%clk 0:00:58.7]} 28. Rxe8 {[%clk 0:00:26.5]} 28... Rxe8 {[%clk
0:00:57.3]} 29. Rb7 {[%clk 0:00:15.1]} 29... Rc8 {[%clk 0:00:44.4]} 30. Kf4
{[%clk 0:00:14.2]} 30... Kxc3 {[%clk 0:00:42.1]} 31. Kxf5 {[%clk 0:00:14.4]}
31... c4 {[%clk 0:00:41.9]} 32. g4 {[%clk 0:00:13.6]} 32... h6 {[%clk
0:00:39.5]} 33. h4 {[%clk 0:00:13.7]} 33... Bd4 {[%clk 0:00:25.5]} 34. Bxd4+
{[%clk 0:00:11.1]} 34... Kxd4 {[%clk 0:00:25.3]} 35. Rd7+ {[%clk 0:00:11.4]}
35... Kc5 {[%clk 0:00:16.6]} 36. Rxg7 {[%clk 0:00:06.4]} 36... c3 {[%clk
0:00:16.5]} 37. Re7 {[%clk 0:00:06.1]} 37... c2 {[%clk 0:00:15.9]} 38. Re1
{[%clk 0:00:05.4]} 38... Kc4 {[%clk 0:00:09.6]} 39. g5 {[%clk 0:00:03.5]} 39...
h5 {[%clk 0:00:08.6]} 40. g6 {[%clk 0:00:03.1]} 40... Kd3 {[%clk 0:00:06.1]} 0-1

[Event "Early-Titled-Tuesday-Blitz-July-09-2024"]
[Site "Chess.com"]
[Date "2024.07.09"]
[Round "4"]
[White "kritipatel"]
[Black "Juicy_Fork"]
[Result "0-1"]
[WhiteElo "2141"]
[BlackElo "2455"]
[TimeControl "180+1"]
[EndTime "8:40:06 PDT"]
[Termination "Juicy_Fork won on time"]

1. e4 {[%clk 0:03:00.9]} 1... e5 {[%clk 0:02:58]} 2. Nf3 {[%clk 0:02:59.7]} 2...
Nc6 {[%clk 0:02:57.9]} 3. Bc4 {[%clk 0:02:58.5]} 3... Nf6 {[%clk 0:02:57.7]} 4.
d3 {[%clk 0:02:57.6]} 4... Bc5 {[%clk 0:02:56.7]} 5. c3 {[%clk 0:02:56.8]} 5...
d6 {[%clk 0:02:53.8]} 6. Nbd2 {[%clk 0:02:56.4]} 6... a5 {[%clk 0:02:51]} 7. a4
{[%clk 0:02:54]} 7... O-O {[%clk 0:02:51]} 8. h3 {[%clk 0:02:51.8]} 8... Be6
{[%clk 0:02:50.9]} 9. O-O {[%clk 0:02:43.7]} 9... Ba7 {[%clk 0:02:34.4]} 10. Qb3
{[%clk 0:02:30.6]} 10... Qd7 {[%clk 0:02:27.6]} 11. Ng5 {[%clk 0:02:09.7]} 11...
Bxc4 {[%clk 0:02:24.5]} 12. Nxc4 {[%clk 0:02:08.2]} 12... h6 {[%clk 0:02:16.4]}
13. Nf3 {[%clk 0:02:07.6]} 13... Rfe8 {[%clk 0:01:56.4]} 14. Be3 {[%clk
0:02:07.1]} 14... d5 {[%clk 0:01:42.2]} 15. exd5 {[%clk 0:01:33.4]} 15... Qxd5
{[%clk 0:01:39.9]} 16. Qxb7 {[%clk 0:01:15]} 16... Reb8 {[%clk 0:01:35.7]} 17.
Qxc7 {[%clk 0:01:14.9]} 17... Ne8 {[%clk 0:01:35.4]} 18. Qxb8 {[%clk 0:00:35.6]}
18... Rxb8 {[%clk 0:01:28.5]} 19. Bxa7 {[%clk 0:00:34.8]} 19... Nxa7 {[%clk
0:01:29.4]} 20. Ncxe5 {[%clk 0:00:29]} 20... Rxb2 {[%clk 0:01:26.3]} 21. c4
{[%clk 0:00:25.4]} 21... Qb7 {[%clk 0:01:17.7]} 22. d4 {[%clk 0:00:24.7]} 22...
Nc6 {[%clk 0:01:13.8]} 23. Nd3 {[%clk 0:00:21.8]} 23... Rc2 {[%clk 0:01:02.5]}
24. c5 {[%clk 0:00:19.4]} 24... Rc3 {[%clk 0:00:57.4]} 25. Rfd1 {[%clk
0:00:18.2]} 25... Nf6 {[%clk 0:00:56.1]} 26. Rab1 {[%clk 0:00:16.1]} 26... Qa6
{[%clk 0:00:56.1]} 27. Nde5 {[%clk 0:00:15.4]} 27... Nxe5 {[%clk 0:00:53.7]} 28.
Nxe5 {[%clk 0:00:15.5]} 28... Nd5 {[%clk 0:00:51.9]} 29. Rb8+ {[%clk 0:00:13.3]}
29... Kh7 {[%clk 0:00:52.4]} 30. Nxf7 {[%clk 0:00:13.4]} 30... Qe2 {[%clk
0:00:50.1]} 31. Rf1 {[%clk 0:00:12.3]} 31... Nf4 {[%clk 0:00:38.6]} 32. Rh8+
{[%clk 0:00:11.3]} 32... Kg6 {[%clk 0:00:38.9]} 33. Ne5+ {[%clk 0:00:11.8]}
33... Kh5 {[%clk 0:00:34.1]} 34. Rf8 {[%clk 0:00:08.8]} 34... Qe4 {[%clk
0:00:24.8]} 35. f3 {[%clk 0:00:06.1]} 35... Qe3+ {[%clk 0:00:24.7]} 36. Kh2
{[%clk 0:00:05.5]} 36... Rc2 {[%clk 0:00:07.4]} 37. Rf5+ {[%clk 0:00:04.4]}
37... g5 {[%clk 0:00:07.8]} 38. Rg1 {[%clk 0:00:02.9]} 38... Qf2 {[%clk
0:00:04.4]} 0-1